Cogmind - Beta 14 @@@ ROGUE MODE // 2025.03.10 @ 21:44:07 Player: perambulator Result: Destroyed by D-53 Grenadier with Mini Grenade Launcher Performance ------------- Evolutions (0) 0 Regions Visited (2) 400 Robots Destroyed (16) 80 Value Destroyed (419) 419 Prototype IDs (0) 0 Alien Tech Used (0) 0 Bonus (0) 0 TOTAL SCORE: 899 Bonus ------- None Cogmind --------- Core Integrity 0/250 Matter 294/300 Energy 100/100 System Corruption 0% Temperature Cool (0) Movement Core (400) Ox7 Location -10/Mines Parts ------- > --- POWER (1) -------- (None) > --- PROPULSION (2) --- (None) > --- UTILITY (2) ------ Large Storage Unit Terrain Scan Processor > --- WEAPON (2) ------- Light Assault Rifle Light Assault Rifle > --- INVENTORY (15) --- Ion Engine Light Treads Light Treads Aluminum Leg Aluminum Leg Aluminum Leg Aluminum Leg Large Storage Unit EM Pulse Gun Small Laser Light Assault Rifle Light Assault Rifle Grenade Launcher Mining Laser Peak State ------------ > --- POWER ------------ Light Ion Engine > --- PROPULSION ------- Aluminum Leg Aluminum Leg > --- UTILITY ---------- Large Storage Unit Terrain Scan Processor > --- WEAPON ----------- Light Assault Rifle Light Assault Rifle > --- INVENTORY -------- Ion Engine Light Treads Light Treads Aluminum Leg Aluminum Leg Aluminum Leg Aluminum Leg Large Storage Unit EM Pulse Gun Small Laser Light Assault Rifle Light Assault Rifle Grenade Launcher [Rating: 9] Favorites ----------- Power Light Ion Engine Engine Light Ion Engine Propulsion Aluminum Leg Treads Light Treads Leg Aluminum Leg Utility Large Storage Unit Storage Large Storage Unit Processor Terrain Scan Processor Weapon Light Assault Rifle Energy Gun Small Laser Ballistic Gun Light Assault Rifle Build | -11 -10 -10 ------- Run | Yrd Mat Min Slots Evolved . | . . . Power . | . . . Propulsion . | . . . Utility . | . . . Weapon . | . . . Parts Attached 16 | 6 10 . Power 2 | 1 1 . Engine 2 | 1 1 . Core . | . . . Reactor . | . . . Propulsion 6 | 2 4 . Treads 2 | . 2 . Leg 4 | 2 2 . Wheel . | . . . Hover . | . . . Flight . | . . . Utility 3 | 1 2 . Device . | . . . Storage 2 | 1 1 . Processor 1 | . 1 . Hackware . | . . . Protection . | . . . Artifact . | . . . Weapon 5 | 2 3 . Energy Gun 2 | 2 . . Energy Cannon . | . . . Ballistic Gun 3 | . 3 . Ballistic Cannon . | . . . Launcher . | . . . Special Weapon . | . . . Impact Weapon . | . . . Slashing Weapon . | . . . Piercing Weapon . | . . . Special Melee Weapon . | . . . Unidentified Prototypes . | . . . Parts Lost 6 | . 3 3 Power 2 | . 1 1 Propulsion 2 | . . 2 Utility . | . . . Weapon 2 | . 2 . Highest Loss Streak 3 | . 2 3 To Critical Strikes . | . . . Average Slot Usage (%) 97 | . 97 99 Engine 13 | . 13 13 Leg 27 | . 28 27 Storage 16 | . 18 14 Processor 10 | . 8 14 Energy Gun 3 | . 4 . Ballistic Gun 24 | . 23 28 Peak Build Rating 9 | 6 9 9 Average Rating 8 | 4 8 8 On Entrance 5 | . 6 9 Naked Turns . | . . . Heaviest Build 32 | 13 32 25 Greatest Support 20 | 20 20 20 Greatest Overweight (x) 3 | 3 1 1 Average Overweight (x) . | . . 1 Largest Inventory Capacity 15 | 8 15 15 Average Capacity 14 | 7 14 15 Most Carried 14 | 3 14 14 Average Carried 11 | 2 10 13 Final Capacity 15 | 8 15 15 Final Carried 14 | 3 13 14 Class Distribution -------------------- 100% | Mutant Dominant Class ---------------- Mutant | -10/Materials Mutant | -10/Mines Resources | -11 -10 -10 ----------- Run | Yrd Mat Min Matter Collected 405 | 221 184 . Remotely . | . . . Salvage Created 444 | . 426 18 Parts 36 | . 36 . Haulers Intercepted . | . . . Recyclers Shooed . | . . . Parts Field Recycled . | . . . Retrieved Matter . | . . . Parts Self-Destructed . | . . . Prevented . | . . . Kills | -11 -10 -10 ------- Run | Yrd Mat Min Combat Hostiles Destroyed 14 | . 13 1 Guns 13 | . 12 1 AOE 1 | . 1 . Classes Destroyed 5 | . 4 1 Builder 1 | . 1 . Watcher 1 | . 1 . Swarmer 5 | . 5 . Grunt 8 | . 8 . Demolisher 1 | . . 1 Best Kill Streak 7 | . 7 1 Combat Bots Only 5 | . 5 1 Max Kills in Single Turn 2 | . 2 1 Gunslinging . | . . . Exploded 1 | . 1 . Melee . | . . . Uniques/NPCs Destroyed . | . . . Combat | -11 -10 -10 -------- Run | Yrd Mat Min Hostile Shots Fired 84 | . 79 5 Missed 19 | . 19 . Damage Taken 918 | . 723 195 Core 250 | . 150 100 Absorbed by Shields . | . . . Core Remaining (%) 100 | 100 . . Volleys Fired 46 | . 42 4 Largest 2 | . 2 2 Hottest 80 | . 80 40 Shots Fired 91 | . 83 8 Gun 91 | . 83 8 Cannon . | . . . Launcher . | . . . Special . | . . . Kinetic 68 | . 60 8 Thermal 16 | . 16 . Explosive . | . . . Electromagnetic 7 | . 7 . Robot Hit Streak 8 | . 8 3 Robot Miss Streak 4 | . 4 1 Penetration Max . | . . . Secondary Targets 1 | . 1 . Max Gunslinging Chain 1 | . 1 . Shots Hit Robots 55 | . 50 5 Core Hits 31 | . 27 4 Critical Kills . | . . . Critical Parts Destroyed 2 | . 2 . Critical Strikes 2 | . 2 . Destroy 2 | . 2 . Melee Attacks . | . . . Impact . | . . . Slashing . | . . . Piercing . | . . . Sneak Attacks . | . . . Combat Hostiles . | . . . Follow-up Attacks . | . . . Damage Inflicted 718 | . 677 41 Guns 497 | . 456 41 Cannons . | . . . Explosions 209 | . 209 . Melee . | . . . Ramming 12 | . 12 . Kinetic 359 | . 318 41 Thermal 105 | . 105 . Explosive 209 | . 209 . Electromagnetic 33 | . 33 . Impact . | . . . Slashing . | . . . Piercing . | . . . Highest Corruption . | . . . Average Corruption . | . . . Corruption Purged . | . . . Corruption Blocked . | . . . Overload Shots . | . . . Overflow Damage 60 | . 60 . Projectiles . | . . . Explosions 60 | . 60 . Melee . | . . . Knockbacks . | . . . Impact . | . . . Kinetic . | . . . Secondary . | . . . Self-Inflicted Damage 110 | . 110 . Shots 1 | . 1 . Rammed . | . . . Targets Rammed 1 | . 1 . Kicked 1 | . 1 . Crushed . | . . . Highest Temperature 177 | . 177 . Average Temperature 58 | . 58 . Received Heat Transfer 252 | . 252 . Siege Activations . | . . . Robots Corrupted . | . . . Combat Hostiles . | . . . Parts Fried . | . . . Impact Corruptions . | . . . Robots Melted . | . . . Combat Hostiles . | . . . Parts Melted 1 | . 1 . Heat Transferred 250 | . 250 . Parts Sabotaged . | . . . Parts Stolen . | . . . Parts Stripped . | . . . Power Chain Reactions . | . . . Alert | -11 -10 -10 ------- Run | Yrd Mat Min Peak Influence 262 | . 262 54 Initial 54 | . . 54 Average 68 | . 92 33 Maximum Alert Level 1 | . 1 . Low Security (%) 94 | 100 91 100 Level 1 5 | . 8 . Level 2 . | . . . Level 3 . | . . . Level 4 . | . . . Level 5 . | . . . High Security . | . . . Max Security . | . . . Squads Dispatched 3 | . 3 . Investigation 1 | . 1 . Extermination . | . . . Reinforcement 2 | . 2 . Assault . | . . . Garrison . | . . . Intercept . | . . . Searches Triggered . | . . . Construction Impeded . | . . . Haulers Reinforced . | . . . Active Scanning Responses . | . . . Cargo Convoy Interrupts . | . . . Stealth | -11 -10 -10 --------- Run | Yrd Mat Min Distress Signals 1 | . 1 . Communications Jammed . | . . . Distress Signals . | . . . Times Spotted 24 | . 22 2 Peak Tracking Total 3 | . 3 2 Tactical Retreats 4 | . 4 . Traps | -11 -10 -10 ------- Run | Yrd Mat Min Traps Triggered 1 | . 1 . Indirectly . | . . . Trap Hack Attempts . | . . . Triggered . | . . . Disarmed . | . . . Reprogrammed . | . . . Reused . | . . . Traps Extracted . | . . . Installed . | . . . Triggered . | . . . Machines | -11 -10 -10 ---------- Run | Yrd Mat Min Machines Disabled 1 | . 1 . Max in Single Turn 1 | . 1 . Machines Repaired . | . . . Machines Dismantled . | . . . Machines Sabotaged . | . . . Overloaded Fab Kills . | . . . Hacking | -11 -10 -10 --------- Run | Yrd Mat Min Machines Accessed . | . . . Terminals . | . . . Fabricators . | . . . Repair Stations . | . . . Recycling Units . | . . . Scanalyzers . | . . . Garrison Access . | . . . Total Hacks . | . . . Successful . | . . . Failed . | . . . Catastrophic . | . . . Database Lockouts . | . . . Manual . | . . . Terminals . | . . . Fabricators . | . . . Repair Stations . | . . . Recycling Units . | . . . Scanalyzers . | . . . Garrison Access . | . . . Terminal Hacks . | . . . Fabricator Hacks . | . . . Repair Station Hacks . | . . . Recycling Unit Hacks . | . . . Scanalyzer . | . . . Garrison Access Hacks . | . . . Unauthorized Hacks . | . . . Terminals . | . . . Fabricators . | . . . Repair Stations . | . . . Recycling Units . | . . . Scanalyzers . | . . . Garrison Access . | . . . Data Cores Recovered . | . . . Used . | . . . Hacking Detections . | . . . Full Trace Events . | . . . Feedback Events . | . . . Feedback Blocked . | . . . Robot Schematics Acquired . | . . . Robots Built . | . . . Authchips . | . . . Time . | . . . Total Robot Build Rating . | . . . Part Schematics Acquired . | . . . Parts Built . | . . . Authchips . | . . . Time . | . . . Total Part Build Rating . | . . . Parts Repaired . | . . . Time . | . . . Parts Recycled . | . . . Recycled Matter . | . . . Retrieved Matter . | . . . Retrieved Components . | . . . Parts Scanalyzed . | . . . Part Schematics Acquired . | . . . Parts Damaged . | . . . Bothacking | -11 -10 -10 ------------ Run | Yrd Mat Min Used RIF Installer . | . . . Robots Hacked . | . . . Non-combat . | . . . Combat . | . . . Robot Hacks Applied . | . . . Relay Couplers Released . | . . . Fabnet Peak Effective % . | . . . Robots Rewired . | . . . Allies Hacked . | . . . Hacks Repelled . | . . . Allies | -11 -10 -10 -------- Run | Yrd Mat Min Total Allies 1 | . . 1 Largest Group 1 | . . 1 Highest-Rated Group 31 | . . 31 Highest-Rated Ally 31 | . . 31 Total Orders . | . . . Ally Attacks . | . . . Total Damage . | . . . Kills . | . . . Allies Corrupted . | . . . Allies Melted . | . . . Intel | -11 -10 -10 ------- Run | Yrd Mat Min Robot Analysis Total . | . . . Derelict Logs Recovered 1 | . . 1 Drone Launches . | . . . Drone Recoveries . | . . . Exploration | -11 -10 -10 ------------- Run | Yrd Mat Min Turns Passed 1904 | 75 1185 644 Spaces Moved 886 | 59 583 244 Core 25 | 25 . . Treads . | . . . Legs 861 | 34 583 244 Wheels . | . . . Hover . | . . . Flight . | . . . Fastest Speed 50 | 50 120 190 Average Speed 175 | 106 176 190 Slowest Speed 200 | 200 190 190 Overloaded Moves . | . . . Propulsion Burnouts . | . . . Robots Hopped . | . . . Cave-ins Triggered . | . . . Exploration Rate (%) 38 | 4 71 41 Regions Visited 2 Branch Regions 1 Pre-discovered Areas . | . . . Known Exits Taken . | . . . Unknown Exits Taken 2 | 1 1 . Scrap Searched 1 | . . 1 Spaces Dug . | . . . Terrain Destroyed 24 | . 24 . Melee . | . . . Projectile . | . . . AOE 24 | . 24 . Terrain Rammed . | . . . Walls Destroyed . | . . . Machines Disabled . | . . . Actions | -11 -10 -10 --------- Run | Yrd Mat Min Total 1154 | 69 666 419 Wait 185 | . 15 170 Move 884 | 58 582 244 Hop . | . . . Pick Up 20 | 5 14 1 Fast Attach 6 | 4 2 . Attach 5 | 2 3 . Detach . | . . . Swap 5 | . 5 . Drop 2 | . 2 . Fire 46 | . 42 4 Melee . | . . . Ram . | . . . Kick 1 | . 1 . Crush . | . . . Escape Stasis . | . . . Rewire . | . . . Trap . | . . . Miscellaneous . | . . . Route ------- -11/Scrapyard -10/Materials (discovered 3 exits: [*Mat x2] / [*Min]) -10/Mines History --------- Turn | Location | Event 7 | -11/Scrapyard | Discovered new exit (range 15) 76 | -11/Scrapyard | Entered Materials 305 | -10/Materials | Build established: Mutant 540 | -10/Materials | Discovered new exit (range 12) 764 | -10/Materials | Discovered new exit (range 12) 970 | -10/Materials | Discovered new exit (range 16) 1177 | -10/Materials | Core integrity fell below 50% 1261 | -10/Materials | Entered Mines 1264 | -10/Mines | Received a Mining Laser from a helpful Derelict 1276 | -10/Mines | Met a Derelict bent on vengeance 1796 | -10/Mines | Assembled infested the area 1801 | -10/Mines | Assisted by a Guerilla fighting off Assembled 1856 | -10/Mines | Learned 8 Materials zone layouts 1904 | -10/Mines | Core integrity fell below 20% 1905 | -10/Mines | Destroyed by D-53 Grenadier with Mini Grenade Launcher Last Messages --------------- K-01 Serf collects debris. ALERT: Infestation in the mines, dispatching Demolisher response squad. A derelict emerges from the shadows: "You need to get out of here! I've been tracking a group of Assembled to figure out where they're coming from, and they're closing on this area, come on!" Acquired derelict log, extracted data. Data stored: Materials zone layouts (x8). K-01 Serf collects debris. D-53 Grenadier destroyed. K-01 Serf collects debris. Aluminum Leg destroyed. Lgt. Ion Engine destroyed. K-01 Serf collects debris. U-05 Engineer lays Concrete. K-01 Serf collects debris. U-05 Engineer lays Concrete. U-05 Engineer builds a Wall. Map ----- +----------------------------------------------------+ | | | | | | | | | | | | | | | | | | | | | | | | | | | | | | | ????????????????????????#?# #????????????????????? | | ????????????????????###? ? ######??????????????? | | ????????????????????# # ? # ##?????????????? | | ????????????######### ? ## ??????????? | | ????????????? ?% ??????????? | | ??????????????? # % ??????????? | | ????????????????# k% ?????????? | | ????????????????# ?????????? | | ????????????????# %# % % ????????? | | ????????????????# d ????????????? | | ????????????????# @ ##?????????????????? | | ?????????????????## #?????????????????? | | ???????????# #??# #?????????????????? | | ??????????# ## ##?????????????????? | | ??????????# ##??????????????????? | | ???????????# #???????????????????? | | ???????????## ## #???????????????????? | | ????????????####??## u# #???????????????????? | | ???????????????????### ####???????????????????? | | ?????????????????????## ##???????###???????????? | | ??????????????????????## ####???# ##??????????? | | ???????????????????????## #### ##??####???? | | ????????????????????????## ### ????? | | ?????????????????????????## ??? | | ??????????????????????????## ###### #???? | | ???????????????????????????# ######?# ##???? | | ???????????????????????????# #?# ##????? | | ???????????????????????????# #### ### #####?????? | | ???????????????????????????# #??# ## #??????????? | | ??????????????????????????? #??# ## #??????????? | | ?????????????????????????? #??# #??????????? | | ?????????????????????????# ##??#### #######????? | | ?????????????????????????# ???????# ## ##???? | | ????????????????????????? ??????## ##??? | | ???????????????????????? ??????# #??? | +----------------------------------------------------+ Best States ------------- Heat Dissipation 25 Energy Generation 10 Energy Capacity 250 Matter Stores 300 Matter Capacity 300 Sight Range 16 Terrain Scan Density 85 Evasion (%) 55 Item Schematics ----------------- None Robot Schematics ------------------ None Fabricated ------------ Nothing Alien Tech Used ----------------- None Achievements -------------- None Challenges ------------ None Game ------ Seed FluxAbsorptionChip Manual? 0 Play Time 00:11:41 Cumulative 26.3 hours Start 2025.03.10 @ 21:26:34 End 2025.03.10 @ 21:44:07 Sessions 1 Manual Loads 0 Difficulty Rogue Special Mode None Game No. 46 Rogue 46 Adventurer 0 Explorer 0 Win Type - Total 0 Types 0/0/0/0/0/0/0/0/0 Lore% 16 Gallery% 20 Achievement% 17 Wizard Run 0 Options --------- Layout 1 ASCII 0 Keyboard 0 Movement Arrows Keybinds 0 Fullscreen 2 Font 18/SmallcapsGlow Map View 25x20 Zoom Use 98% Tactical HUD 0 Map Filters NONE Filters NONE Steam 0 RUN: b0ac8fac-e208-4067-953e-3457fa13f13b